[Event "Titled Tuesday Blitz July 25 Late 2023"]
[White "Michalczak, Thomas"]
[Black "Yolosz"]
[WhiteFideId "4622634"]
[WhiteElo "2476"]
[BlackElo "2348"]
[Result "1-0"]
[Round "8"]
[TimeControl "180+2"]
[Date "2023.07.25"]
[WhiteClock "0:00:42"]
[BlackClock "0:00:10"]
[Board "96"]

1. e4 {[%clk 0:03:00]}  c5 {[%clk 0:02:57]} 2. c3 {[%clk 0:03:00]}  d5 {[%clk 0:02:56]} 3. exd5 {[%clk 0:03:00]}  Qxd5 {[%clk 0:02:56]} 4. Nf3 {[%clk 0:03:01]}  Nc6 {[%clk 0:02:48]} 5. Na3 {[%clk 0:03:01]}  Bg4 {[%clk 0:02:45]} 6. Be2 {[%clk 0:02:58]}  Nf6 {[%clk 0:02:39]} 7. O-O {[%clk 0:02:58]}  e6 {[%clk 0:02:38]} 8. h3 {[%clk 0:02:58]}  Bh5 {[%clk 0:02:35]} 9. d3 {[%clk 0:02:58]}  Be7 {[%clk 0:02:24]} 10. Nc4 {[%clk 0:02:57]}  O-O {[%clk 0:02:22]} 11. Re1 {[%clk 0:02:56]}  Rfd8 {[%clk 0:02:14]} 12. a4 {[%clk 0:02:55]}  Bxf3 {[%clk 0:02:10]} 13. Bxf3 {[%clk 0:02:54]}  Qxd3 {[%clk 0:02:10]} 14. Qxd3 {[%clk 0:02:54]}  Rxd3 {[%clk 0:02:11]} 15. Bxc6 {[%clk 0:02:54]}  bxc6 {[%clk 0:02:11]} 16. Ne5 {[%clk 0:02:54]}  Rd6 {[%clk 0:01:54]} 17. Bf4 {[%clk 0:02:53]}  Nd5 {[%clk 0:01:52]} 18. Bg3 {[%clk 0:02:52]}  Rc8 {[%clk 0:01:37]} 19. Nc4 {[%clk 0:02:38]}  Rdd8 {[%clk 0:01:31]} 20. a5 {[%clk 0:02:38]}  Nc7 {[%clk 0:01:09]} 21. Bxc7 {[%clk 0:02:14]}  Rxc7 {[%clk 0:01:09]} 22. Rad1 {[%clk 0:02:15]}  Rcd7 {[%clk 0:01:08]} 23. Rxd7 {[%clk 0:02:15]}  Rxd7 {[%clk 0:01:09]} 24. Kf1 {[%clk 0:02:11]}  Kf8 {[%clk 0:01:09]} 25. Ke2 {[%clk 0:02:11]}  Bd8 {[%clk 0:01:03]} 26. Ra1 {[%clk 0:02:09]}  Ke7 {[%clk 0:01:00]} 27. Ra3 {[%clk 0:02:05]}  f6 {[%clk 0:01:00]} 28. Rb3 {[%clk 0:02:04]}  e5 {[%clk 0:00:57]} 29. g4 {[%clk 0:02:03]}  Ke6 {[%clk 0:00:57]} 30. Rb8 {[%clk 0:02:01]}  Kd5 {[%clk 0:00:56]} 31. b3 {[%clk 0:01:53]}  h5 {[%clk 0:00:53]} 32. Ke3 {[%clk 0:01:44]}  hxg4 {[%clk 0:00:50]} 33. hxg4 {[%clk 0:01:44]}  g6 {[%clk 0:00:51]} 34. f3 {[%clk 0:01:43]}  f5 {[%clk 0:00:51]} 35. gxf5 {[%clk 0:01:34]}  gxf5 {[%clk 0:00:52]} 36. f4 {[%clk 0:01:35]}  exf4+ {[%clk 0:00:44]} 37. Kf3 {[%clk 0:01:30]}  Ke6 {[%clk 0:00:36]} 38. Ke2 {[%clk 0:01:23]}  Kd5 {[%clk 0:00:23]} 39. Kf3 {[%clk 0:01:22]}  Ke6 {[%clk 0:00:23]} 40. Ke2 {[%clk 0:01:22]}  Kd5 {[%clk 0:00:23]} 41. Rc8 {[%clk 0:01:15]}  Bf6 {[%clk 0:00:22]} 42. Kd3 {[%clk 0:01:12]}  f3 {[%clk 0:00:20]} 43. Ke3 {[%clk 0:01:11]}  Bxc3 {[%clk 0:00:19]} 44. Kxf3 {[%clk 0:01:12]}  Bb4 {[%clk 0:00:15]} 45. Ke3 {[%clk 0:01:04]}  Re7+ {[%clk 0:00:15]} 46. Kd3 {[%clk 0:01:04]}  f4 {[%clk 0:00:15]} 47. Rd8+ {[%clk 0:01:01]}  Ke6 {[%clk 0:00:15]} 48. Rd6+ {[%clk 0:01:01]}  Kf5 {[%clk 0:00:15]} 49. Rxc6 {[%clk 0:01:00]}  f3 {[%clk 0:00:16]} 50. Ne3+ {[%clk 0:00:59]}  Kf4 {[%clk 0:00:16]} 51. Nd5+ {[%clk 0:00:57]}  Kg3 {[%clk 0:00:16]} 52. Rg6+ {[%clk 0:00:52]}  Kh4 {[%clk 0:00:13]} 53. Nxe7 {[%clk 0:00:50]}  Kh5 {[%clk 0:00:10]} 54. Rg3 {[%clk 0:00:42]} 1-0


[Site "https://www.chess.com"]

[Event "Titled Tuesday Blitz July 25 Late 2023"]
[White "Dinu, Dumitru-Daniel"]
[Black "Vifleemskaia, Svetlana"]
[WhiteFideId "1208403"]
[BlackFideId "4129490"]
[WhiteElo "2459"]
[BlackElo "2330"]
[Result "1-0"]
[Round "8"]
[TimeControl "180+2"]
[Date "2023.07.25"]
[WhiteClock "0:00:06"]
[BlackClock "0:00:00"]
[Board "99"]

1. d4 {[%clk 0:03:00]}  Nf6 {[%clk 0:02:59]} 2. c4 {[%clk 0:03:00]}  e6 {[%clk 0:02:59]} 3. Nf3 {[%clk 0:03:00]}  Bb4+ {[%clk 0:02:59]} 4. Bd2 {[%clk 0:03:00]}  Qe7 {[%clk 0:02:58]} 5. g3 {[%clk 0:02:59]}  Bxd2+ {[%clk 0:02:54]} 6. Qxd2 {[%clk 0:02:59]}  d5 {[%clk 0:02:54]} 7. Nc3 {[%clk 0:02:56]}  dxc4 {[%clk 0:02:53]} 8. Bg2 {[%clk 0:02:54]}  Nbd7 {[%clk 0:02:45]} 9. O-O {[%clk 0:02:54]}  O-O {[%clk 0:02:45]} 10. Rac1 {[%clk 0:02:50]}  a6 {[%clk 0:02:44]} 11. a4 {[%clk 0:02:50]}  Rb8 {[%clk 0:02:39]} 12. e4 {[%clk 0:02:46]}  e5 {[%clk 0:02:24]} 13. dxe5 {[%clk 0:02:36]}  Nxe5 {[%clk 0:02:23]} 14. Qd4 {[%clk 0:02:23]}  Nxf3+ {[%clk 0:02:03]} 15. Bxf3 {[%clk 0:02:24]}  Be6 {[%clk 0:01:52]} 16. e5 {[%clk 0:02:24]}  Nd7 {[%clk 0:01:49]} 17. Rfe1 {[%clk 0:02:15]}  c5 {[%clk 0:01:42]} 18. Qf4 {[%clk 0:02:12]}  b5 {[%clk 0:01:38]} 19. axb5 {[%clk 0:02:05]}  axb5 {[%clk 0:01:39]} 20. Nd5 {[%clk 0:01:59]}  Bxd5 {[%clk 0:01:30]} 21. Bxd5 {[%clk 0:01:59]}  Nb6 {[%clk 0:01:30]} 22. Bf3 {[%clk 0:01:56]}  Rbd8 {[%clk 0:01:22]} 23. Ra1 {[%clk 0:01:50]}  Rd4 {[%clk 0:01:19]} 24. Re4 {[%clk 0:01:46]}  Rfd8 {[%clk 0:01:15]} 25. Ra6 {[%clk 0:01:22]}  Nd5 {[%clk 0:01:14]} 26. Qg4 {[%clk 0:01:11]}  Nb4 {[%clk 0:01:08]} 27. Rb6 {[%clk 0:00:58]}  Nd3 {[%clk 0:01:02]} 28. e6 {[%clk 0:00:42]}  Ne5 {[%clk 0:00:46]} 29. Qf5 {[%clk 0:00:41]}  Nxf3+ {[%clk 0:00:45]} 30. Qxf3 {[%clk 0:00:41]}  Rxe4 {[%clk 0:00:45]} 31. Qxe4 {[%clk 0:00:41]}  Re8 {[%clk 0:00:37]} 32. Rxb5 {[%clk 0:00:22]}  Qxe6 {[%clk 0:00:37]} 33. Qxe6 {[%clk 0:00:21]}  fxe6 {[%clk 0:00:36]} 34. Rxc5 {[%clk 0:00:21]}  Rb8 {[%clk 0:00:33]} 35. Rxc4 {[%clk 0:00:21]}  Rxb2 {[%clk 0:00:33]} 36. Re4 {[%clk 0:00:21]}  Kf7 {[%clk 0:00:33]} 37. Kg2 {[%clk 0:00:22]}  Kf6 {[%clk 0:00:33]} 38. h4 {[%clk 0:00:22]}  h5 {[%clk 0:00:31]} 39. Rf4+ {[%clk 0:00:21]}  Kg6 {[%clk 0:00:29]} 40. Rf8 {[%clk 0:00:21]}  Rb3 {[%clk 0:00:28]} 41. Kh3 {[%clk 0:00:20]}  Rb4 {[%clk 0:00:27]} 42. f3 {[%clk 0:00:19]}  Rb3 {[%clk 0:00:26]} 43. Kg2 {[%clk 0:00:16]}  Rb2+ {[%clk 0:00:25]} 44. Kf1 {[%clk 0:00:15]}  e5 {[%clk 0:00:24]} 45. Re8 {[%clk 0:00:15]}  Kf6 {[%clk 0:00:23]} 46. Rc8 {[%clk 0:00:13]}  Kf5 {[%clk 0:00:22]} 47. Rf8+ {[%clk 0:00:10]}  Kg6 {[%clk 0:00:20]} 48. Re8 {[%clk 0:00:10]}  Kf6 {[%clk 0:00:20]} 49. Rh8 {[%clk 0:00:10]}  Kg6 {[%clk 0:00:20]} 50. Rf8 {[%clk 0:00:10]}  Rc2 {[%clk 0:00:19]} 51. Re8 {[%clk 0:00:08]}  Kf6 {[%clk 0:00:19]} 52. Rf8+ {[%clk 0:00:07]}  Kg6 {[%clk 0:00:19]} 53. Kg1 {[%clk 0:00:07]}  Rb2 {[%clk 0:00:17]} 54. Re8 {[%clk 0:00:07]}  Kf6 {[%clk 0:00:17]} 55. Rf8+ {[%clk 0:00:08]}  Kg6 {[%clk 0:00:17]} 56. Re8 {[%clk 0:00:08]}  Kf6 {[%clk 0:00:18]} 57. Rd8 {[%clk 0:00:07]}  Kg6 {[%clk 0:00:16]} 58. Rd1 {[%clk 0:00:07]}  Kf5 {[%clk 0:00:16]} 59. Rf1 {[%clk 0:00:07]}  g5 {[%clk 0:00:15]} 60. hxg5 {[%clk 0:00:06]}  Kxg5 {[%clk 0:00:16]} 61. Rf2 {[%clk 0:00:06]}  Rb1+ {[%clk 0:00:15]} 62. Kg2 {[%clk 0:00:07]}  Rb3 {[%clk 0:00:15]} 63. Re2 {[%clk 0:00:07]}  Kf5 {[%clk 0:00:15]} 64. Rd2 {[%clk 0:00:07]}  Ra3 {[%clk 0:00:15]} 65. Rd8 {[%clk 0:00:07]}  Ra2+ {[%clk 0:00:10]} 66. Kh3 {[%clk 0:00:07]}  Ra3 {[%clk 0:00:11]} 67. Rf8+ {[%clk 0:00:07]}  Kg5 {[%clk 0:00:10]} 68. Rg8+ {[%clk 0:00:04]}  Kf5 {[%clk 0:00:10]} 69. Rf8+ {[%clk 0:00:04]}  Kg5 {[%clk 0:00:11]} 70. Rf7 {[%clk 0:00:05]}  Kg6 {[%clk 0:00:09]} 71. Re7 {[%clk 0:00:04]}  Rxf3 {[%clk 0:00:08]} 72. Rxe5 {[%clk 0:00:04]}  Rf5 {[%clk 0:00:07]} 73. Re6+ {[%clk 0:00:03]}  Rf6 {[%clk 0:00:07]} 74. Re5 {[%clk 0:00:03]}  Rf5 {[%clk 0:00:07]} 75. Re8 {[%clk 0:00:03]}  Rf1 {[%clk 0:00:06]} 76. Rg8+ {[%clk 0:00:03]}  Kh6 {[%clk 0:00:07]} 77. Rh8+ {[%clk 0:00:02]}  Kg6 {[%clk 0:00:07]} 78. Rg8+ {[%clk 0:00:03]}  Kh6 {[%clk 0:00:07]} 79. Rh8+ {[%clk 0:00:03]}  Kg6 {[%clk 0:00:07]} 80. Kg2 {[%clk 0:00:03]}  Rb1 {[%clk 0:00:06]} 81. Rg8+ {[%clk 0:00:04]}  Kh7 {[%clk 0:00:06]} 82. Re8 {[%clk 0:00:04]}  Kg6 {[%clk 0:00:06]} 83. Re6+ {[%clk 0:00:04]}  Kf5 {[%clk 0:00:07]} 84. Rh6 {[%clk 0:00:04]}  Kg5 {[%clk 0:00:07]} 85. Rh8 {[%clk 0:00:04]}  Rb2+ {[%clk 0:00:07]} 86. Kh3 {[%clk 0:00:05]}  Rb1 {[%clk 0:00:08]} 87. Rc8 {[%clk 0:00:05]}  Rb5 {[%clk 0:00:07]} 88. Rc6 {[%clk 0:00:05]}  Rd5 {[%clk 0:00:06]} 89. Re6 {[%clk 0:00:05]}  Ra5 {[%clk 0:00:05]} 90. Re4 {[%clk 0:00:05]}  Rb5 {[%clk 0:00:05]} 91. Re8 {[%clk 0:00:05]}  Rc5 {[%clk 0:00:05]} 92. Rg8+ {[%clk 0:00:06]}  Kh6 {[%clk 0:00:04]} 93. Rf8 {[%clk 0:00:06]}  Kg5 {[%clk 0:00:05]} 94. Rf4 {[%clk 0:00:05]}  Kh6 {[%clk 0:00:04]} 95. Re4 {[%clk 0:00:06]}  Kg5 {[%clk 0:00:04]} 96. Rd4 {[%clk 0:00:05]}  Kh6 {[%clk 0:00:05]} 97. Kh4 {[%clk 0:00:06]}  Rb5 {[%clk 0:00:00]} 98. Rd6+ {[%clk 0:00:06]} 1-0


[Site "https://www.chess.com"]

[Event "Titled Tuesday Blitz July 25 Late 2023"]
[White "Tsyhanchuk, Stanislav"]
[Black "Castella Garcia, Fausto"]
[WhiteFideId "13505130"]
[BlackFideId "3501922"]
[WhiteElo "2328"]
[BlackElo "2452"]
[Result "1-0"]
[Round "8"]
[TimeControl "180+2"]
[Date "2023.07.25"]
[WhiteClock "0:00:13"]
[BlackClock "0:00:00"]
[Board "100"]

1. c4 {[%clk 0:03:00]}  c5 {[%clk 0:02:59]} 2. Nc3 {[%clk 0:03:01]}  g6 {[%clk 0:03:00]} 3. g3 {[%clk 0:03:01]}  Bg7 {[%clk 0:03:00]} 4. Bg2 {[%clk 0:03:02]}  Nf6 {[%clk 0:03:01]} 5. e3 {[%clk 0:03:00]}  O-O {[%clk 0:03:00]} 6. Nge2 {[%clk 0:03:01]}  Nc6 {[%clk 0:02:59]} 7. d4 {[%clk 0:03:00]}  d6 {[%clk 0:02:58]} 8. O-O {[%clk 0:03:00]}  Bf5 {[%clk 0:02:45]} 9. a3 {[%clk 0:03:00]}  Rc8 {[%clk 0:02:38]} 10. e4 {[%clk 0:02:55]}  Bg4 {[%clk 0:02:36]} 11. d5 {[%clk 0:02:54]}  Nd4 {[%clk 0:02:35]} 12. f3 {[%clk 0:02:54]}  Nxe2+ {[%clk 0:02:32]} 13. Nxe2 {[%clk 0:02:55]}  Bd7 {[%clk 0:02:31]} 14. Rb1 {[%clk 0:02:53]}  b5 {[%clk 0:02:29]} 15. b3 {[%clk 0:02:51]}  Rb8 {[%clk 0:02:27]} 16. Be3 {[%clk 0:02:49]}  Qa5 {[%clk 0:02:22]} 17. b4 {[%clk 0:02:33]}  Qxa3 {[%clk 0:02:16]} 18. Rb3 {[%clk 0:02:33]}  Qa6 {[%clk 0:02:11]} 19. bxc5 {[%clk 0:02:33]}  dxc5 {[%clk 0:02:07]} 20. Bxc5 {[%clk 0:02:31]}  bxc4 {[%clk 0:02:07]} 21. Rxb8 {[%clk 0:02:30]}  Rxb8 {[%clk 0:02:08]} 22. Bxe7 {[%clk 0:02:29]}  Qb6+ {[%clk 0:01:59]} 23. Kh1 {[%clk 0:02:28]}  Qb3 {[%clk 0:01:53]} 24. e5 {[%clk 0:02:25]}  Qxd1 {[%clk 0:01:35]} 25. Rxd1 {[%clk 0:02:26]}  Ne8 {[%clk 0:01:24]} 26. f4 {[%clk 0:02:23]}  Bg4 {[%clk 0:01:21]} 27. Bf1 {[%clk 0:02:18]}  Rb2 {[%clk 0:01:15]} 28. Re1 {[%clk 0:02:16]}  Bf3+ {[%clk 0:01:10]} 29. Kg1 {[%clk 0:02:15]}  Bxd5 {[%clk 0:01:10]} 30. Rc1 {[%clk 0:01:58]}  Nc7 {[%clk 0:00:59]} 31. Nd4 {[%clk 0:01:52]}  g5 {[%clk 0:00:37]} 32. Bxc4 {[%clk 0:01:49]}  gxf4 {[%clk 0:00:38]} 33. Bxd5 {[%clk 0:01:48]}  Nxd5 {[%clk 0:00:35]} 34. Rc8+ {[%clk 0:01:47]}  Bf8 {[%clk 0:00:36]} 35. Bxf8 {[%clk 0:01:20]}  Rb1+ {[%clk 0:00:31]} 36. Kf2 {[%clk 0:01:17]}  h5 {[%clk 0:00:27]} 37. gxf4 {[%clk 0:01:08]}  Kh7 {[%clk 0:00:23]} 38. Kf3 {[%clk 0:01:01]}  Rf1+ {[%clk 0:00:20]} 39. Ke4 {[%clk 0:00:58]}  Nxf4 {[%clk 0:00:20]} 40. Rc7 {[%clk 0:00:50]}  Ng6 {[%clk 0:00:18]} 41. Bd6 {[%clk 0:00:44]}  a5 {[%clk 0:00:13]} 42. Ra7 {[%clk 0:00:40]}  Re1+ {[%clk 0:00:10]} 43. Kd5 {[%clk 0:00:39]}  Nf4+ {[%clk 0:00:08]} 44. Kc6 {[%clk 0:00:27]}  Kg6 {[%clk 0:00:09]} 45. Rxa5 {[%clk 0:00:24]}  Re4 {[%clk 0:00:08]} 46. Nf3 {[%clk 0:00:21]}  Kf5 {[%clk 0:00:05]} 47. e6+ {[%clk 0:00:18]}  Kg4 {[%clk 0:00:05]} 48. exf7 {[%clk 0:00:15]}  Ne6 {[%clk 0:00:00]} 49. Ng5 {[%clk 0:00:13]} 1-0


[Site "https://www.chess.com"]

[Event "Titled Tuesday Blitz July 25 Late 2023"]
[White "Moore, Nicholas"]
[Black "Georg, Heinz"]
[WhiteFideId "4303709"]
[BlackFideId "4607295"]
[WhiteElo "2443"]
[BlackElo "2293"]
[Result "1-0"]
[Round "8"]
[TimeControl "180+2"]
[Date "2023.07.25"]
[WhiteClock "0:00:42"]
[BlackClock "0:01:24"]
[Board "101"]

1. c4 {[%clk 0:03:00]}  f5 {[%clk 0:02:58]} 2. d4 {[%clk 0:02:58]}  e6 {[%clk 0:02:55]} 3. Nf3 {[%clk 0:02:57]}  Nf6 {[%clk 0:02:55]} 4. g3 {[%clk 0:02:57]}  Be7 {[%clk 0:02:56]} 5. Bg2 {[%clk 0:02:58]}  O-O {[%clk 0:02:56]} 6. O-O {[%clk 0:02:58]}  d6 {[%clk 0:02:57]} 7. b3 {[%clk 0:02:58]}  a5 {[%clk 0:02:56]} 8. Nc3 {[%clk 0:02:57]}  Qe8 {[%clk 0:02:53]} 9. Bb2 {[%clk 0:02:57]}  Bd8 {[%clk 0:02:50]} 10. Re1 {[%clk 0:01:46]}  e5 {[%clk 0:02:48]} 11. dxe5 {[%clk 0:01:47]}  dxe5 {[%clk 0:02:49]} 12. e4 {[%clk 0:01:48]}  Nc6 {[%clk 0:02:43]} 13. exf5 {[%clk 0:01:48]}  Bxf5 {[%clk 0:02:44]} 14. Nd5 {[%clk 0:01:47]}  e4 {[%clk 0:02:17]} 15. Nh4 {[%clk 0:01:39]}  Bg4 {[%clk 0:02:12]} 16. Nxf6+ {[%clk 0:01:24]}  Bxf6 {[%clk 0:02:12]} 17. Qxg4 {[%clk 0:01:24]}  Bxb2 {[%clk 0:02:10]} 18. Rab1 {[%clk 0:01:04]}  Bd4 {[%clk 0:02:08]} 19. Nf5 {[%clk 0:00:58]}  Bf6 {[%clk 0:01:39]} 20. Bxe4 {[%clk 0:00:53]}  Qg6 {[%clk 0:01:29]} 21. Ne7+ {[%clk 0:00:50]}  Nxe7 {[%clk 0:01:28]} 22. Bxg6 {[%clk 0:00:50]}  Nxg6 {[%clk 0:01:28]} 23. Rbd1 {[%clk 0:00:43]}  Ne5 {[%clk 0:01:24]} 24. Rxe5 {[%clk 0:00:42]} 1-0


[Site "https://www.chess.com"]

[Event "Titled Tuesday Blitz July 25 Late 2023"]
[White "Mickiewicz, Piotr"]
[Black "Doluhanova, Evgeniya"]
[WhiteFideId "1114891"]
[BlackFideId "14112035"]
[WhiteElo "2432"]
[BlackElo "2276"]
[Result "1-0"]
[Round "8"]
[TimeControl "180+2"]
[Date "2023.07.25"]
[WhiteClock "0:00:34"]
[BlackClock "0:00:16"]
[Board "103"]

1. Nf3 {[%clk 0:03:00]}  Nf6 {[%clk 0:02:55]} 2. e3 {[%clk 0:03:01]}  c5 {[%clk 0:02:48]} 3. b3 {[%clk 0:03:02]}  Nc6 {[%clk 0:02:47]} 4. Bb2 {[%clk 0:03:03]}  b6 {[%clk 0:02:48]} 5. c4 {[%clk 0:02:59]}  Bb7 {[%clk 0:02:48]} 6. g3 {[%clk 0:02:59]}  g6 {[%clk 0:02:48]} 7. Bg2 {[%clk 0:02:59]}  Bg7 {[%clk 0:02:48]} 8. O-O {[%clk 0:02:59]}  O-O {[%clk 0:02:49]} 9. Qe2 {[%clk 0:02:59]}  d6 {[%clk 0:02:49]} 10. Rd1 {[%clk 0:02:58]}  e5 {[%clk 0:02:49]} 11. d3 {[%clk 0:02:55]}  Qe7 {[%clk 0:02:49]} 12. Nc3 {[%clk 0:02:55]}  Nd8 {[%clk 0:02:46]} 13. Nd2 {[%clk 0:02:45]}  Bxg2 {[%clk 0:02:44]} 14. Kxg2 {[%clk 0:02:46]}  Ne6 {[%clk 0:02:44]} 15. Nde4 {[%clk 0:02:41]}  Nxe4 {[%clk 0:02:43]} 16. dxe4 {[%clk 0:02:39]}  Rad8 {[%clk 0:02:39]} 17. Rd2 {[%clk 0:02:35]}  f5 {[%clk 0:02:37]} 18. exf5 {[%clk 0:02:13]}  gxf5 {[%clk 0:02:36]} 19. Rad1 {[%clk 0:02:08]}  Qg5 {[%clk 0:02:23]} 20. Rxd6 {[%clk 0:01:52]}  f4 {[%clk 0:02:18]} 21. Rxd8 {[%clk 0:01:46]}  Nxd8 {[%clk 0:02:11]} 22. Ne4 {[%clk 0:01:40]}  Qg6 {[%clk 0:02:03]} 23. f3 {[%clk 0:01:39]}  Ne6 {[%clk 0:01:59]} 24. Rd6 {[%clk 0:01:30]}  Qf5 {[%clk 0:01:32]} 25. exf4 {[%clk 0:01:05]}  exf4 {[%clk 0:01:28]} 26. Bxg7 {[%clk 0:01:06]}  Kxg7 {[%clk 0:01:24]} 27. Qb2+ {[%clk 0:01:00]}  Nd4 {[%clk 0:01:23]} 28. g4 {[%clk 0:00:39]}  Qe5 {[%clk 0:01:06]} 29. Rd5 {[%clk 0:00:39]}  Qe7 {[%clk 0:01:00]} 30. b4 {[%clk 0:00:40]}  Rd8 {[%clk 0:00:49]} 31. bxc5 {[%clk 0:00:39]}  bxc5 {[%clk 0:00:16]} 32. Rxc5 {[%clk 0:00:34]} 1-0


[Site "https://www.chess.com"]

[Event "Titled Tuesday Blitz July 25 Late 2023"]
[White "Sariego Figueredo, Wilfredo"]
[Black "Silva Lucena, Cristian"]
[WhiteFideId "3500080"]
[BlackFideId "2232588"]
[WhiteElo "2257"]
[BlackElo "2423"]
[Result "1-0"]
[Round "8"]
[TimeControl "180+2"]
[Date "2023.07.25"]
[WhiteClock "0:01:55"]
[BlackClock "0:00:56"]
[Board "105"]

1. d4 {[%clk 0:02:59]}  Nf6 {[%clk 0:02:53]} 2. Bf4 {[%clk 0:03:00]}  g6 {[%clk 0:02:50]} 3. Nc3 {[%clk 0:02:59]}  Bg7 {[%clk 0:02:50]} 4. e4 {[%clk 0:02:59]}  d6 {[%clk 0:02:49]} 5. Qd2 {[%clk 0:02:59]}  c5 {[%clk 0:02:49]} 6. dxc5 {[%clk 0:02:48]}  dxc5 {[%clk 0:02:49]} 7. Qxd8+ {[%clk 0:02:48]}  Kxd8 {[%clk 0:02:50]} 8. O-O-O+ {[%clk 0:02:48]}  Nbd7 {[%clk 0:02:49]} 9. Nf3 {[%clk 0:02:47]}  a6 {[%clk 0:02:48]} 10. Ne5 {[%clk 0:02:42]}  Ke8 {[%clk 0:02:46]} 11. Nxd7 {[%clk 0:02:33]}  Bxd7 {[%clk 0:02:47]} 12. a4 {[%clk 0:02:33]}  Bc6 {[%clk 0:02:38]} 13. f3 {[%clk 0:02:32]}  Nh5 {[%clk 0:02:29]} 14. Be3 {[%clk 0:02:29]}  Bxc3 {[%clk 0:02:27]} 15. bxc3 {[%clk 0:02:28]}  Bxa4 {[%clk 0:02:27]} 16. Bxc5 {[%clk 0:02:28]}  Rc8 {[%clk 0:02:28]} 17. Bb6 {[%clk 0:02:22]}  Nf4 {[%clk 0:02:14]} 18. g3 {[%clk 0:02:21]}  Ne6 {[%clk 0:02:05]} 19. Bh3 {[%clk 0:02:17]}  Bd7 {[%clk 0:01:41]} 20. Rd2 {[%clk 0:02:05]}  Rc6 {[%clk 0:01:25]} 21. Bf2 {[%clk 0:02:00]}  Nf8 {[%clk 0:01:01]} 22. Bxd7+ {[%clk 0:01:59]}  Nxd7 {[%clk 0:01:02]} 23. Rhd1 {[%clk 0:01:58]}  Rc7 {[%clk 0:00:56]} 24. Bb6 {[%clk 0:01:55]} 1-0


[Site "https://www.chess.com"]

[Event "Titled Tuesday Blitz July 25 Late 2023"]
[White "Reprintsev, Alexander"]
[Black "Francisco_Ferrari"]
[WhiteFideId "14100541"]
[WhiteElo "2421"]
[BlackElo "2226"]
[Result "0-1"]
[Round "8"]
[TimeControl "180+2"]
[Date "2023.07.25"]
[WhiteClock "0:00:48"]
[BlackClock "0:00:28"]
[Board "106"]

1. e4 {[%clk 0:02:56]}  c5 {[%clk 0:02:59]} 2. b3 {[%clk 0:02:53]}  e6 {[%clk 0:02:56]} 3. Nf3 {[%clk 0:02:51]}  Nc6 {[%clk 0:02:55]} 4. Bb2 {[%clk 0:02:50]}  Nf6 {[%clk 0:02:53]} 5. e5 {[%clk 0:02:49]}  Nd5 {[%clk 0:02:52]} 6. g3 {[%clk 0:02:40]}  Be7 {[%clk 0:02:44]} 7. Bg2 {[%clk 0:02:39]}  O-O {[%clk 0:02:44]} 8. O-O {[%clk 0:02:36]}  f6 {[%clk 0:02:43]} 9. Re1 {[%clk 0:02:28]}  fxe5 {[%clk 0:02:37]} 10. Nxe5 {[%clk 0:02:27]}  Bf6 {[%clk 0:02:13]} 11. Nxc6 {[%clk 0:02:24]}  bxc6 {[%clk 0:02:09]} 12. Nc3 {[%clk 0:01:52]}  Bd4 {[%clk 0:02:02]} 13. Re2 {[%clk 0:01:44]}  Ba6 {[%clk 0:02:01]} 14. Re3 {[%clk 0:01:34]}  Nxe3 {[%clk 0:01:45]} 15. dxe3 {[%clk 0:01:31]}  Bf6 {[%clk 0:01:39]} 16. Na4 {[%clk 0:01:28]}  Bxb2 {[%clk 0:01:37]} 17. Nxb2 {[%clk 0:01:27]}  Qf6 {[%clk 0:01:35]} 18. Nd3 {[%clk 0:01:20]}  Bxd3 {[%clk 0:01:33]} 19. cxd3 {[%clk 0:01:20]}  Qxf2+ {[%clk 0:01:33]} 20. Kh1 {[%clk 0:01:21]}  Qxe3 {[%clk 0:01:33]} 21. Qc2 {[%clk 0:01:12]}  Rf2 {[%clk 0:01:31]} 22. Qc4 {[%clk 0:01:10]}  Raf8 {[%clk 0:01:25]} 23. Qg4 {[%clk 0:01:06]}  Qe2 {[%clk 0:01:03]} 24. Qh3 {[%clk 0:01:03]}  Qxd3 {[%clk 0:00:56]} 25. Rg1 {[%clk 0:01:02]}  Rxa2 {[%clk 0:00:51]} 26. Qh5 {[%clk 0:01:00]}  Qxb3 {[%clk 0:00:41]} 27. Qxc5 {[%clk 0:00:58]}  Rxg2 {[%clk 0:00:28]} 28. Kxg2 {[%clk 0:00:55]}  Qf3+ {[%clk 0:00:27]} 29. Kh3 {[%clk 0:00:48]}  Rf5 {[%clk 0:00:28]} 0-1


[Site "https://www.chess.com"]

[Event "Titled Tuesday Blitz July 25 Late 2023"]
[White "Rakitic2010"]
[Black "BeautiFullMindChess"]
[WhiteElo "2417"]
[BlackElo "2163"]
[Result "1-0"]
[Round "8"]
[TimeControl "180+2"]
[Date "2023.07.25"]
[WhiteClock "0:02:30"]
[BlackClock "0:00:49"]
[Board "108"]

1. e4 {[%clk 0:03:00]}  c5 {[%clk 0:02:52]} 2. Nf3 {[%clk 0:02:56]}  d6 {[%clk 0:02:53]} 3. c3 {[%clk 0:02:56]}  Nf6 {[%clk 0:02:52]} 4. Be2 {[%clk 0:02:57]}  Bg4 {[%clk 0:02:52]} 5. O-O {[%clk 0:02:54]}  Nc6 {[%clk 0:02:49]} 6. d4 {[%clk 0:02:53]}  Bxf3 {[%clk 0:02:32]} 7. Bxf3 {[%clk 0:02:53]}  Nd7 {[%clk 0:02:27]} 8. d5 {[%clk 0:02:51]}  Ncb8 {[%clk 0:01:59]} 9. c4 {[%clk 0:02:47]}  g6 {[%clk 0:01:58]} 10. Bd2 {[%clk 0:02:46]}  Bg7 {[%clk 0:01:58]} 11. Bc3 {[%clk 0:02:46]}  Bxc3 {[%clk 0:01:57]} 12. Nxc3 {[%clk 0:02:47]}  O-O {[%clk 0:01:57]} 13. Be2 {[%clk 0:02:47]}  Nf6 {[%clk 0:01:53]} 14. f4 {[%clk 0:02:47]}  Nbd7 {[%clk 0:01:53]} 15. Qd3 {[%clk 0:02:47]}  a6 {[%clk 0:01:52]} 16. Qg3 {[%clk 0:02:47]}  b5 {[%clk 0:01:46]} 17. e5 {[%clk 0:02:46]}  Ne8 {[%clk 0:01:32]} 18. b3 {[%clk 0:02:42]}  bxc4 {[%clk 0:01:29]} 19. bxc4 {[%clk 0:02:42]}  Ng7 {[%clk 0:01:21]} 20. Bd3 {[%clk 0:02:40]}  Qa5 {[%clk 0:01:19]} 21. Ne4 {[%clk 0:02:35]}  Nf5 {[%clk 0:01:12]} 22. Qh3 {[%clk 0:02:32]}  dxe5 {[%clk 0:01:10]} 23. Ng5 {[%clk 0:02:31]}  e4 {[%clk 0:00:49]} 24. Qxh7# {[%clk 0:02:30]} 1-0


[Site "https://www.chess.com"]

[Event "Titled Tuesday Blitz July 25 Late 2023"]
[White "Tikhonov, Viacheslav"]
[Black "Masterisback04"]
[WhiteFideId "44196407"]
[WhiteElo "2483"]
[BlackElo "1886"]
[Result "1-0"]
[Round "8"]
[TimeControl "180+2"]
[Date "2023.07.25"]
[WhiteClock "0:00:48"]
[BlackClock "0:01:28"]
[Board "111"]

1. e4 {[%clk 0:03:00]}  c6 {[%clk 0:02:59]} 2. d4 {[%clk 0:02:56]}  d5 {[%clk 0:02:59]} 3. e5 {[%clk 0:02:55]}  c5 {[%clk 0:02:59]} 4. dxc5 {[%clk 0:02:51]}  e6 {[%clk 0:02:59]} 5. a3 {[%clk 0:02:51]}  Bxc5 {[%clk 0:02:54]} 6. b4 {[%clk 0:02:51]}  Be7 {[%clk 0:02:44]} 7. Bb2 {[%clk 0:02:49]}  Nc6 {[%clk 0:02:44]} 8. Qg4 {[%clk 0:02:46]}  Kf8 {[%clk 0:02:39]} 9. Nf3 {[%clk 0:02:37]}  Nh6 {[%clk 0:02:38]} 10. Qf4 {[%clk 0:02:33]}  a6 {[%clk 0:02:25]} 11. Bd3 {[%clk 0:02:31]}  Bd7 {[%clk 0:02:24]} 12. O-O {[%clk 0:02:21]}  g5 {[%clk 0:02:22]} 13. Qd2 {[%clk 0:02:14]}  Rc8 {[%clk 0:02:21]} 14. c4 {[%clk 0:01:49]}  dxc4 {[%clk 0:02:11]} 15. Bxc4 {[%clk 0:01:50]}  b5 {[%clk 0:02:11]} 16. Bd3 {[%clk 0:01:38]}  Kg7 {[%clk 0:02:07]} 17. Be4 {[%clk 0:01:33]}  Be8 {[%clk 0:01:59]} 18. Qe2 {[%clk 0:01:20]}  Nf5 {[%clk 0:01:48]} 19. Bxf5 {[%clk 0:01:15]}  exf5 {[%clk 0:01:48]} 20. e6+ {[%clk 0:01:16]}  f6 {[%clk 0:01:48]} 21. Rd1 {[%clk 0:01:04]}  Qc7 {[%clk 0:01:47]} 22. Nxg5 {[%clk 0:01:00]}  Rd8 {[%clk 0:01:41]} 23. Nc3 {[%clk 0:00:57]}  Bg6 {[%clk 0:01:40]} 24. Nd5 {[%clk 0:00:49]}  Qf4 {[%clk 0:01:28]} 25. Nxf4 {[%clk 0:00:48]} 1-0


[Site "https://www.chess.com"]